bitfinex-derivatives/quotes_ETHF0:USTF0_20250321
["timestamp","ask_amount","ask_price","bid_price","bid_amount"]
[1742518440392,7.44413,1994.7,1994.6,40.8]
[1742518442893,7.44413,1994.7,1994.2,4.578]
[1742518442894,1.00354,1994.3,1994.2,4.578]
[1742518443186,4.23754,1994.3,1994.2,45.53636718]
[1742518443393,4.23754,1994.3,1994.2,44.53277718]
[1742518443890,4.89774,1994.3,1994.2,44.53277718]
[1742518444487,4.89774,1994.3,1994.2,45.01139]
[1742518444685,4.89774,1994.3,1994.2,44.53236772]
[1742518445597,4.89774,1994.3,1994.2,44.0078]
[1742518446287,4.89774,1994.3,1994.2,45.01139]
[1742518446485,4.89774,1994.3,1994.2,44.0078]
[1742518446682,4.89774,1994.3,1994.2,45.53572078]
[1742518447285,4.89774,1994.3,1994.2,46.16821221]
[1742518447485,4.89774,1994.3,1994.2,45.16462221]
[1742518447888,4.89774,1994.3,1994.2,45.53572526]
[1742518448291,4.89774,1994.3,1994.2,44.53213526]
[1742518448596,4.23754,1994.3,1994.2,45.53568526]
[1742518448994,4.23754,1994.3,1994.2,46.16775762]
[1742518449897,4.23754,1994.3,1994.2,46.84804817]
[1742518450091,3.234,1994.3,1994.2,46.84804523]
[1742518450291,3.234,1994.3,1994.2,46.84804397]
[1742518450497,3.234,1994.3,1994.2,46.84797829]
[1742518450796,4.23754,1994.3,1994.2,46.84797829]
[1742518451495,1.00354,1994.3,1994.2,43.64017829]
[1742518451696,1.00354,1994.3,1994.2,46.84797829]
[1742518451905,5.60043,1994.4,1994.3,1.00354]
[1742518452091,5.60043,1994.4,1994.3,2.22926527]
[1742518452291,5.60043,1994.4,1994.3,2.87436527]
[1742518452590,5.60043,1994.4,1994.3,2.87451465]
[1742518452790,5.60043,1994.4,1994.3,3.50673132]
[1742518453586,4.23753,1994.4,1994.3,3.50673132]
[1742518453790,3.234,1994.4,1994.3,3.50673132]
[1742518453995,3.234,1994.4,1994.3,4.18909037]
[1742518454403,3.234,1994.4,1994.3,3.50673132]
[1742518454698,3.234,1994.4,1994.3,4.18915518]
[1742518455394,4.23748,1994.4,1994.3,4.18915518]
[1742518455694,4.23748,1994.4,1994.3,3.18561518]
[1742518455896,4.89058,1994.4,1994.3,1.15649132]
[1742518456195,4.89058,1994.4,1994.3,0.52427465]
[1742518456401,4.89058,1994.4,1994.3,1.52898583]
[1742518456599,4.89058,1994.4,1994.3,2.21638583]
[1742518456794,4.89058,1994.4,1994.3,1.21283975]
[1742518457195,4.89058,1994.4,1994.3,2.85021499]
[1742518457494,4.23748,1994.4,1994.3,2.85021499]
[1742518457688,4.23748,1994.4,1994.3,3.49871499]
[1742518457894,3.234,1994.4,1994.3,3.49871499]
[1742518458296,3.234,1994.4,1994.3,4.18088669]
[1742518458600,3.234,1994.4,1994.3,3.49871499]
[1742518458800,3.234,1994.4,1994.3,44.98092532]
[1742518459600,3.234,1994.4,1994.3,46.37652532]
[1742518459799,3.234,1994.4,1994.3,46.37683157]
[1742518460299,3.234,1994.4,1994.3,45.69462124]
[1742518460500,3.234,1994.4,1994.3,46.37723081]
[1742518462107,4.5969,1994.5,1994.4,1.00348]
[1742518462314,2.35843,1994.6,1994.5,1.00343]
[1742518462504,5.59243,1994.6,1994.5,1.52949401]
[1742518462701,4.92733,1994.6,1994.5,2.94129401]
[1742518462908,4.92733,1994.6,1994.5,1.93786401]
[1742518463904,4.92733,1994.6,1994.5,1.4118]
[1742518466402,4.92733,1994.6,1994.5,1.93860605]
[1742518468202,4.92733,1994.6,1994.5,1.93856962]
[1742518468412,4.92733,1994.6,1994.5,0.52676962]
[1742518468800,1.00343,1994.5,1994.4,4.5725]
[1742518468995,3.00073,1994.5,1994.4,3.73475142]
[1742518469204,3.00073,1994.5,1994.4,5.09945142]
[1742518469711,3.00073,1994.5,1994.4,5.73502573]
[1742518471506,3.00073,1994.5,1994.4,2.5273271]
[1742518473616,3.00073,1994.5,1994.4,1.1626271]
[1742518473808,3.00073,1994.5,1994.4,2.5193271]
[1742518474209,3.00073,1994.5,1994.4,2.5195225]
[1742518476203,3.00073,1994.5,1994.4,2.51951888]
[1742518476418,3.00073,1994.5,1994.4,1.88394457]
[1742518477118,3.00073,1994.5,1994.4,2.51976555]
[1742518478220,3.00073,1994.5,1994.4,1.88385905]
[1742518478916,3.00073,1994.5,1994.4,1.16293625]
[1742518479712,3.00073,1994.5,1994.4,0.52715905]
[1742518480221,1.00354,1994.3,1994.2,1.4105]
[1742518480418,4.23654,1994.3,1994.2,2.62171766]
[1742518480815,4.91434,1994.3,1994.2,2.62171766]
[1742518481318,4.91434,1994.3,1994.2,1.9375994]
[1742518481517,4.91434,1994.3,1994.2,2.57328509]
[1742518482120,4.91434,1994.3,1994.2,1.16278509]
[1742518482623,1.00384,1993.7,1993.6,0.6698]
[1742518482820,4.23684,1993.7,1993.6,1.35395876]
[1742518483011,4.23684,1993.7,1993.6,42.15395876]
[1742518483523,4.23684,1993.7,1993.6,42.47369]
[1742518483720,4.23684,1993.7,1993.6,46.36488607]
[1742518483921,4.23684,1993.7,1993.6,47.73267782]
[1742518484218,4.23684,1993.7,1993.6,43.52098782]
[1742518484429,4.23684,1993.7,1993.6,42.8376]
[1742518485117,4.23684,1993.7,1993.6,46.72833652]
[1742518485437,4.23684,1993.7,1993.6,46.0454]
[1742518485719,4.23684,1993.7,1993.6,47.04929]
[1742518486424,5.55224,1993.7,1993.6,47.04929]
[1742518487220,5.55224,1993.7,1993.6,46.0454]
[1742518487522,5.55224,1993.7,1993.6,47.04929]
[1742518487722,5.55224,1993.7,1993.6,46.0454]
[1742518488723,5.55224,1993.7,1993.6,47.04929]
[1742518490231,4.23684,1993.7,1993.6,47.04929]
[1742518490522,1.00382,1993.8,1993.7,1.00384]
[1742518490716,1.00378,1993.9,1993.8,1.00375]
[1742518490918,4.23778,1993.9,1993.8,1.67175]
[1742518491127,4.23778,1993.9,1993.8,42.47175]
[1742518491333,4.23778,1993.9,1993.8,41.468]
[1742518491524,5.60338,1993.9,1993.8,40.8]
[1742518491726,6.90948,1993.9,1993.8,42.1953]
[1742518493629,4.23778,1993.9,1993.8,42.1953]
[1742518493929,5.60338,1993.9,1993.8,42.1953]
[1742518494128,4.23778,1993.9,1993.8,42.1953]
[1742518494731,5.57728,1993.9,1993.8,42.1953]
[1742518495630,5.57728,1993.9,1993.8,43.19909]
[1742518495832,4.23778,1993.9,1993.8,43.19909]
[1742518496627,4.23774,1993.9,1993.8,43.19909]
[1742518497218,1.00374,1993.9,1993.8,43.19909]
[1742518497433,4.23774,1993.9,1993.8,43.19909]
[1742518498835,4.23774,1993.9,1993.8,42.1953]
[1742518500432,4.23774,1993.9,1993.8,1.3953]
[1742518500931,4.23774,1993.9,1993.8,2.39909]
[1742518502235,3.234,1993.9,1993.8,2.39909]
[1742518503430,2.29565,1994.1,1993.8,4.6031]
[1742518503635,1.00367,1994.1,1994.0,1.00366]
[1742518503930,1.9207,1994.2,1994.1,1.00364]
[1742518503931,5.51162,1994.2,1994.1,1.00364]
[1742518504129,5.51162,1994.2,1993.9,2.6328]
[1742518504130,3.234,1994.2,1994.0,1.2907]
[1742518504335,4.23761,1994.2,1994.1,1.00364]
[1742518504533,4.23761,1994.2,1994.1,1.68517525]
[1742518504736,4.23761,1994.2,1994.1,2.97587528]
[1742518505532,4.23761,1994.2,1994.1,1.97223528]
[1742518506136,4.23761,1994.2,1994.1,2.97587528]
[1742518506433,4.23761,1994.2,1994.1,1.97223528]
[1742518506636,4.23761,1994.2,1994.1,1.9725534]
[1742518507047,5.59831,1994.2,1994.1,1.9725534]
[1742518508849,5.59831,1994.2,1994.1,2.9761934]
[1742518509347,4.23761,1994.2,1994.1,2.9761934]
[1742518509849,1.00361,1994.2,1994.1,2.9761934]
[1742518510044,4.23661,1994.2,1994.1,2.9761934]
[1742518510442,5.62101,1994.2,1994.1,2.9761934]
[1742518510648,5.62101,1994.2,1994.1,2.97658269]
[1742518511250,5.62101,1994.2,1994.1,1.97294269]
[1742518511747,1.00384,1993.7,1993.6,40.8]
[1742518511949,1.00389,1993.6,1993.5,0.00752445]
[1742518512450,1.64119,1993.6,1993.5,40.80752445]
[1742518513250,2.93189,1993.6,1993.5,40.80752445]
[1742518514946,3.63569,1993.6,1993.5,40.80752445]
[1742518518149,3.63569,1993.6,1993.5,0.00752445]
[1742518522749,3.63569,1993.6,1993.5,1.41172445]
[1742518525060,6.86969,1993.6,1993.5,1.41172445]
[1742518531162,4.23789,1993.6,1993.5,1.41172445]
[1742518531361,2.50955,1993.8,1993.5,1.41172445]
[1742518531362,0.697,1993.8,1993.5,1.41172445]
[1742518531563,3.234,1993.7,1993.6,1.00389]
[1742518531959,1.00382,1993.8,1993.6,41.80389]
[1742518532159,1.00382,1993.8,1993.7,2.0304]
[1742518532665,1.00382,1993.8,1993.7,3.03424]
[1742518532857,1.00382,1993.8,1993.7,43.83424]
[1742518533063,3.234,1993.9,1993.7,42.8304]
[1742518533264,4.23774,1993.9,1993.8,2.0237]
[1742518535462,1.00374,1993.9,1993.8,3.02749]
[1742518535769,1.00374,1993.9,1993.8,6.23529]
[1742518536769,1.00374,1993.9,1993.8,6.91160711]
[1742518537170,4.23773,1994.0,1993.9,1.00374]
[1742518537370,4.23773,1994.0,1993.9,2.30704]
[1742518537664,4.23773,1994.0,1993.9,1.3033]
[1742518538373,4.90393,1994.0,1993.9,1.3033]
[1742518542568,1.00384,1993.7,1993.6,40.8]
[1742518542767,4.23684,1993.7,1993.6,40.8]
[1742518543081,1.00389,1993.6,1993.5,0.00752445]
[1742518543269,1.68339,1993.6,1993.5,0.00752445]
[1742518543469,1.68339,1993.6,1993.5,40.80752445]
[1742518543966,3.05459,1993.6,1993.5,40.80752445]
[1742518546477,3.05459,1993.6,1993.5,42.10422445]
[1742518552072,3.70279,1993.6,1993.5,42.10422445]
[1742518552269,1.00389,1993.6,1993.5,42.10422445]
[1742518552475,1.00389,1993.6,1993.5,42.7823059]
[1742518552675,1.00389,1993.6,1993.5,42.10422445]
[1742518552980,1.00389,1993.6,1993.5,44.47076445]
[1742518554173,1.00389,1993.6,1993.5,43.46682445]
[1742518555689,1.00389,1993.6,1993.5,44.14514334]
[1742518556376,1.00389,1993.6,1993.5,48.35688334]
[1742518556681,1.00389,1993.6,1993.5,47.35294334]
[1742518557976,2.37209,1993.6,1993.5,5.86861543]
[1742518558279,3.76989,1993.6,1993.5,3.21532445]
[1742518560783,3.76989,1993.6,1993.5,0.00752445]
[1742518561479,6.97769,1993.6,1993.5,0.00752445]
[1742518562078,1.00399,1993.4,1993.3,40.8]
[1742518562284,4.23799,1993.4,1993.3,40.8]
[1742518566693,4.23799,1993.4,1993.3,42.1741]
[1742518571276,5.51349,1993.4,1993.3,42.1741]
[1742518574986,5.51349,1993.4,1993.2,4.45e-06]
[1742518574987,1.00404,1993.3,1993.2,4.45e-06]
[1742518575190,3.70584,1993.3,1993.2,4.45e-06]
[1742518580390,3.06224,1993.3,1993.2,4.45e-06]
[1742518580589,5.64104,1993.3,1993.2,0.64200445]
[1742518586311,4.23804,1993.3,1993.2,0.64200445]
[1742518586817,1.00404,1993.3,1993.2,1.92700445]
[1742518587006,4.23804,1993.3,1993.2,1.92700445]
[1742518593114,4.23804,1993.3,1993.2,2.60622321]
[1742518593417,1.00402,1993.4,1993.3,1.00404]
[1742518593612,1.00394,1993.6,1993.5,1.00392]
[1742518594114,4.23794,1993.6,1993.5,4.89065685]
[1742518594518,4.23794,1993.6,1993.5,5.55605685]
[1742518594710,4.23794,1993.6,1993.5,0.6654]
[1742518594904,4.23794,1993.6,1993.4,2.30426]
[1742518595109,2.29514,1993.5,1993.4,1.00396]
[1742518595313,2.29514,1993.5,1993.4,2.34832933]
[1742518595514,2.29514,1993.5,1993.4,1.68292933]
[1742518595712,2.29514,1993.5,1993.4,1.00396]
[1742518595912,2.29514,1993.5,1993.4,1.68294774]
[1742518596112,2.29514,1993.5,1993.4,1.00396]
[1742518596913,1.00399,1993.4,1993.3,4.885]
[1742518597120,2.29519,1993.4,1993.3,5.56395387]
[1742518597719,6.4396,1993.6,1993.4,1.00399]
[1742518597720,1.00397,1993.5,1993.4,1.00399]
[1742518598018,2.28067,1993.5,1993.4,1.68282551]
[1742518598916,4.23793,1993.6,1993.5,1.00394]
[1742518599519,4.23793,1993.6,1993.5,1.68247317]
[1742518600021,5.67404,1993.9,1993.8,1.00372]
[1742518600022,1.00377,1993.9,1993.8,1.00372]
[1742518600206,1.00377,1993.9,1993.8,4.21152]
[1742518600429,1.00377,1993.9,1993.8,3.2078]
[1742518600612,4.23677,1993.9,1993.8,3.2078]
[1742518600819,5.53827,1993.9,1993.8,3.2078]
[1742518602219,5.53827,1993.9,1993.8,4.21159]
[1742518602912,4.23677,1993.9,1993.8,4.21159]
[1742518603119,3.233,1993.9,1993.8,4.21159]
[1742518603513,4.5859,1993.9,1993.8,4.21159]
[1742518606822,1.00372,1994.0,1993.9,1.00374]
[1742518607026,5.52532,1994.0,1993.9,1.63924]
[1742518609026,5.52532,1994.0,1993.9,1.00374]
[1742518609219,5.52532,1994.0,1993.8,4.21155]
[1742518609220,1.00374,1993.9,1993.8,4.21155]
[1742518609421,2.96874,1993.9,1993.8,4.21155]
[1742518609721,2.96874,1993.9,1993.8,4.5526]
[1742518610327,2.96874,1993.9,1993.8,5.55639]
[1742518610827,2.96874,1993.9,1993.8,4.5526]
[1742518611026,2.96874,1993.9,1993.8,5.55639]
[1742518612727,2.96874,1993.9,1993.8,4.5526]
[1742518615628,1.00384,1993.7,1993.6,3.2078]
[1742518615828,4.23584,1993.7,1993.6,3.2078]
[1742518616035,6.29034,1993.7,1993.6,3.2078]
[1742518616236,1.00394,1993.5,1993.4,40.8]
[1742518616420,1.00404,1993.3,1993.2,4.45e-06]
[1742518616623,4.23604,1993.3,1993.2,4.45e-06]
[1742518617154,4.91364,1993.3,1993.2,42.10210445]
[1742518617638,4.91364,1993.3,1993.2,40.80000445]
[1742518618134,4.91364,1993.3,1993.2,4.45e-06]
[1742518618932,6.20534,1993.3,1993.2,4.45e-06]
[1742518619328,6.87854,1993.3,1993.2,4.45e-06]
[1742518630037,55.76854,1993.3,1993.2,4.45e-06]
[1742518632550,53.26854,1993.3,1993.2,4.45e-06]
[1742518634463,50.03654,1993.3,1993.2,4.45e-06]
[1742518634756,51.91874,1993.3,1993.2,4.45e-06]
[1742518634948,48.68574,1993.3,1993.2,1.00409445]
[1742518635150,4.23704,1993.3,1993.2,3.20780445]
[1742518635360,4.23704,1993.3,1993.2,4.45e-06]
[1742518635557,4.23704,1993.3,1993.2,1.31410445]
[1742518636250,1.00403,1993.4,1993.2,4.52190445]
[1742518636453,1.00397,1993.5,1993.3,1.3141]
[1742518636646,3.233,1993.6,1993.4,5.58129]
[1742518636850,4.23693,1993.6,1993.5,1.3141]
[1742518638754,1.00394,1993.5,1993.4,0.7028]
[1742518638960,2.31294,1993.5,1993.4,0.7028]
[1742518643565,1.00404,1993.3,1993.2,3.20780445]
[1742518643763,4.23704,1993.3,1993.2,3.20780445]
[1742518644263,5.61824,1993.3,1993.2,3.20780445]
[1742518647266,5.61824,1993.3,1993.2,4.45e-06]
[1742518652567,8.82604,1993.3,1993.2,4.45e-06]
[1742518657081,8.82604,1993.3,1992.6,0.6582]
[1742518657082,2.51023,1993.2,1992.6,0.6582]
[1742518657387,1.00429,1992.8,1992.7,1.3979]
[1742518657584,4.23729,1992.8,1992.7,1.3979]
[1742518657784,6.91969,1992.8,1992.7,1.3979]
[1742518658375,1.00434,1992.7,1992.6,0.00752445]
[1742518658573,2.31004,1992.7,1992.6,0.00752445]
[1742518659076,1.00459,1992.2,1992.1,3.2078]
[1742518659272,4.23759,1992.2,1992.1,44.6696]
[1742518660381,4.23759,1992.2,1992.1,5.2348]
[1742518661084,5.54329,1992.2,1992.1,5.2348]
[1742518666988,5.54329,1992.2,1992.1,5.919]
[1742518671992,2.31029,1992.2,1992.1,5.919]
[1742518672192,1.00457,1992.3,1992.2,1.00454]
[1742518672486,4.23857,1992.3,1992.2,2.30224]
[1742518674691,4.23857,1992.3,1992.2,4.5055]
[1742518674894,4.23857,1992.3,1992.2,5.51009]
[1742518675790,4.23857,1992.3,1992.2,5.51009]
[1742518677094,4.23857,1992.3,1992.2,4.5055]
[1742518681588,4.23857,1992.3,1992.2,1.2977]
[1742518681994,5.56457,1992.3,1992.2,1.2977]
[1742518684697,5.56457,1992.3,1992.2,2.003]
[1742518687199,5.56457,1992.3,1992.2,2.68302557]
[1742518688200,5.56457,1992.3,1992.2,2.003]
[1742518688703,5.56457,1992.3,1992.2,2.68339529]
[1742518689299,3.21053,1992.5,1992.2,2.003]
[1742518689300,1.00453,1992.4,1992.2,2.003]
[1742518689498,2.51088,1992.7,1992.4,1.00447]
[1742518689803,3.234,1992.6,1992.5,7.54031212]
[1742518690002,3.234,1992.6,1992.5,48.34031212]
[1742518690300,4.23839,1992.6,1992.5,48.34031212]
[1742518690697,4.23839,1992.6,1992.5,47.33592212]
[1742518691098,4.23839,1992.6,1992.5,46.64752212]
[1742518692003,4.23839,1992.6,1992.5,47.65196212]
[1742518693800,4.23839,1992.6,1992.0,0.00752445]
[1742518693801,3.234,1992.6,1992.0,0.00752445]
[1742518694004,1.00459,1992.2,1992.1,5.86826742]
[1742518694202,4.23759,1992.2,1992.1,6.50496742]
[1742518694706,4.23759,1992.2,1992.1,5.86826742]
[1742518695003,4.87509,1992.2,1992.1,5.86826742]
[1742518697403,4.87509,1992.2,1992.1,5.86840633]
[1742518697605,3.233,1992.2,1992.1,6.87304633]
[1742518697906,1.00455,1992.3,1992.2,1.00454]
[1742518698107,4.23755,1992.3,1992.2,2.98814633]
[1742518699004,4.23755,1992.3,1992.2,2.30874]
[1742518699806,4.23755,1992.3,1992.2,2.98807433]
[1742518701010,2.34381,1992.4,1992.3,1.00454]
[1742518701207,2.34381,1992.4,1992.3,5.52214]
[1742518701401,5.57681,1992.4,1992.3,6.20140946]
[1742518704612,4.5723,1992.4,1992.3,6.20140946]
[1742518704814,4.5723,1992.4,1992.3,6.20132662]
[1742518705313,4.5723,1992.4,1992.3,6.201308]
[1742518706420,4.5723,1992.4,1992.3,2.993508]
[1742518706624,4.5723,1992.4,1992.3,6.201308]
[1742518708217,5.57679,1992.4,1992.3,6.201308]
[1742518709221,5.57679,1992.4,1992.3,6.20140864]
[1742518710727,1.00443,1992.6,1992.5,1.00444]
[1742518711026,4.23743,1992.6,1992.5,4.21224]
[1742518711623,4.23743,1992.6,1992.5,4.89160473]
[1742518711925,1.00444,1992.5,1992.4,1.3955]
[1742518712120,1.00454,1992.4,1992.3,1.00452]
[1742518712324,4.94404,1992.4,1992.3,3.07959526]
[1742518712622,4.23749,1992.4,1992.3,3.07959526]
[1742518713024,5.63079,1992.4,1992.3,3.07959526]
[1742518713324,4.6263,1992.4,1992.3,3.07963841]
[1742518715228,4.6263,1992.4,1992.3,3.07975238]
[1742518717122,4.6263,1992.4,1992.3,3.07992147]
[1742518717523,3.233,1992.4,1992.3,3.07992147]
[1742518718326,4.5875,1992.4,1992.3,3.07992147]
[1742518718625,1.3545,1992.4,1992.3,3.07992147]
[1742518719331,1.3545,1992.4,1992.3,3.07993183]
[1742518720636,2.35899,1992.4,1992.3,3.07993183]
[1742518720933,1.3545,1992.4,1992.3,3.07993183]
[1742518721134,1.3545,1992.4,1992.3,3.07999346]
[1742518722234,2.35899,1992.4,1992.3,0.67997346]
[1742518722533,2.35899,1992.4,1992.3,1.68451346]
[1742518722730,2.35899,1992.4,1992.3,3.01761346]
[1742518723235,2.35899,1992.4,1992.3,3.01767596]
[1742518725437,1.3545,1992.4,1992.3,3.01767596]
[1742518725736,3.233,1992.5,1992.4,1.00449]
[1742518725938,4.5693,1992.5,1992.4,6.90112596]
[1742518727132,5.57374,1992.5,1992.4,6.90124469]
[1742518727437,5.57374,1992.5,1992.4,3.88795469]
[1742518727825,2.51133,1992.4,1992.2,3.2078]
[1742518728131,3.04354,1992.3,1992.2,3.2078]
[1742518728336,6.95264,1992.3,1992.2,3.88819355]
[1742518728629,6.95264,1992.3,1992.2,4.89278355]
[1742518728835,6.95264,1992.3,1992.2,3.88819355]
[1742518729132,6.95264,1992.3,1992.2,3.2078]
[1742518732335,6.95264,1992.3,1992.2,4.21239]
[1742518732733,5.9481,1992.3,1992.2,4.21239]
[1742518732937,5.9481,1992.3,1992.2,4.89218247]
[1742518733130,6.95264,1992.3,1992.2,4.89218247]
[1742518733540,5.9481,1992.3,1992.2,4.89218247]
[1742518734333,5.9481,1992.3,1992.2,6.25468247]
[1742518734632,5.57384,1992.3,1992.2,6.25468247]
[1742518735036,5.57384,1992.3,1992.2,6.2545337]
[1742518735238,4.5693,1992.3,1992.2,6.2545337]
[1742518735839,5.57384,1992.3,1992.2,6.2545337]
[1742518736038,5.57384,1992.3,1992.2,4.5703]
[1742518736342,1.00464,1992.1,1992.0,45.01998445]
[1742518736545,4.23764,1992.1,1992.0,45.69961106]
[1742518737041,4.23764,1992.1,1992.0,45.69961543]
[1742518737636,5.60354,1992.1,1992.0,47.07701543]
[1742518739636,4.5989,1992.1,1992.0,47.07701543]
[1742518740751,4.23764,1992.1,1992.0,47.07701543]
[1742518741745,3.233,1992.1,1992.0,47.07701543]
[1742518742446,4.23764,1992.1,1992.0,47.07666151]
[1742518743138,3.233,1992.1,1992.0,47.07666151]
[1742518743742,4.6424,1992.1,1992.0,47.07666151]
[1742518744149,5.64704,1992.1,1992.0,46.07200151]
[1742518744343,5.64704,1992.1,1992.0,47.07676492]
[1742518746442,5.64704,1992.1,1992.0,47.07683715]
[1742518748752,5.64704,1992.1,1992.0,46.07214715]
[1742518748943,5.64704,1992.1,1992.0,47.07683715]
[1742518749247,5.64704,1992.1,1992.0,45.69943715]
[1742518749451,5.64704,1992.1,1992.0,46.36141445]
[1742518750550,5.64704,1992.1,1992.0,47.04106136]
[1742518752351,5.64704,1992.1,1992.0,47.04114792]
[1742518753253,5.64704,1992.1,1992.0,46.03645792]
[1742518753548,5.64704,1992.1,1992.0,47.04114792]
[1742518756257,4.6424,1992.1,1992.0,47.04114792]
[1742518756750,3.233,1992.1,1992.0,47.04114792]
[1742518757548,1.3248,1992.2,1992.1,1.00464]
[1742518757748,5.56239,1992.2,1992.1,3.68187347]
[1742518758158,5.56239,1992.2,1992.1,3.68268624]
[1742518758456,4.5578,1992.2,1992.1,3.68268624]
[1742518758858,5.56239,1992.2,1992.1,3.68268624]
[1742518761565,5.56239,1992.2,1992.1,3.68247859]
[1742518762061,5.56239,1992.2,1992.1,3.68248619]
[1742518764054,5.56239,1992.2,1992.1,3.68245169]
[1742518765467,4.5578,1992.2,1992.1,3.68245169]
[1742518766162,4.5578,1992.2,1992.1,3.68241837]
[1742518766463,5.56239,1992.2,1992.1,3.68241837]
[1742518766856,5.56139,1992.2,1992.1,3.68241837]
[1742518767055,4.5568,1992.2,1992.1,3.68241837]
[1742518768258,4.5568,1992.2,1992.1,3.68239671]
[1742518769966,4.5568,1992.2,1992.1,3.00214]
[1742518770268,4.5568,1992.2,1992.1,3.68232635]
[1742518770871,5.56139,1992.2,1992.1,3.68232635]
[1742518771566,4.5568,1992.2,1992.1,3.68232635]
[1742518771962,4.5568,1992.2,1992.1,3.00214]
[1742518772264,4.5568,1992.2,1992.1,3.68229297]
[1742518773069,5.56139,1992.2,1992.1,3.68229297]
[1742518773964,5.56139,1992.2,1992.1,3.00214]
[1742518774264,5.56139,1992.2,1992.1,3.68224953]
[1742518774768,5.56139,1992.2,1992.1,2.02660953]
[1742518774968,5.56139,1992.2,1992.1,0.68010953]
[1742518775362,5.56139,1992.2,1992.1,1.68474953]
[1742518775670,5.56139,1992.2,1992.1,3.06344953]
[1742518777870,5.56139,1992.2,1992.1,0.68010953]
[1742518780066,5.56139,1992.2,1992.0,45.02001445]
[1742518780067,1.00464,1992.1,1992.0,45.02001445]
[1742518780269,3.71254,1992.1,1992.0,45.70027919]
[1742518781974,3.71254,1992.1,1992.0,45.70029969]
[1742518785978,3.71254,1992.1,1992.0,47.10441764]
[1742518786682,3.71254,1992.1,1992.0,47.80701764]
[1742518786982,1.3663,1992.1,1992.0,47.80703521]
[1742518787178,4.5983,1992.1,1992.0,47.80703521]
[1742518787474,4.5983,1992.1,1992.0,45.70033521]
[1742518787682,6.25874,1992.1,1992.0,45.70033521]
[1742518787879,5.2541,1992.1,1992.0,45.70033781]
[1742518788180,6.25874,1992.1,1992.0,45.70033781]
[1742518788880,5.2541,1992.1,1992.0,45.70033781]
[1742518789579,5.2541,1992.1,1992.0,46.97373781]
[1742518789880,5.2541,1992.1,1992.0,46.97372702]
[1742518790786,6.25874,1992.1,1992.0,46.97372702]
[1742518790984,4.5983,1992.1,1992.0,46.97372702]
[1742518791485,5.60294,1992.1,1992.0,46.97372702]
[1742518791881,4.5983,1992.1,1992.0,46.97363304]
[1742518794688,5.60294,1992.1,1992.0,46.97363304]
[1742518794989,4.5983,1992.1,1992.0,46.97363304]
[1742518795801,4.5983,1992.1,1992.0,46.97370529]
[1742518797893,4.5983,1992.1,1992.0,46.97378917]
[1742518798694,5.60294,1992.1,1992.0,46.97378917]
[1742518799292,5.60294,1992.1,1992.0,45.96909917]
[1742518799487,5.60294,1992.1,1992.0,5.16909917]
[1742518799995,5.60294,1992.1,1992.0,5.16905108]
[1742518800386,5.60294,1992.1,1992.0,3.89559616]
[1742518800987,5.60294,1992.1,1992.0,5.25019616]
[1742518801187,5.60294,1992.1,1992.0,5.25024929]
[1742518801388,5.60294,1992.1,1992.0,3.89564929]
[1742518801599,5.60294,1992.1,1992.0,5.25024929]
[1742518803190,5.60294,1992.1,1992.0,5.2501829]
[1742518803586,5.60294,1992.1,1992.0,3.8955829]
[1742518803896,8.10294,1992.1,1992.0,2.9e-06]
[1742518804103,1.00479,1991.8,1991.7,1.3377]
[1742518804299,4.23679,1991.8,1991.7,1.3377]
[1742518804497,4.23679,1991.8,1991.7,40.8]
[1742518804799,4.23679,1991.8,1991.7,44.0078]
[1742518804995,5.62519,1991.8,1991.7,3.2078]
[1742518805598,5.62519,1991.8,1991.7,4.5057]
[1742518806702,5.62519,1991.8,1991.7,3.2078]
[1742518807494,1.00485,1991.7,1991.6,0.00752445]
[1742518807701,3.03445,1991.7,1991.6,0.00752445]
[1742518808398,3.12210278,1991.7,1991.6,0.00752445]
[1742518809100,6.73769153,1991.7,1991.6,0.00752445]
[1742518809303,6.65003875,1991.7,1991.6,0.00752445]
[1742518809490,3.03445,1991.7,1991.6,0.00752445]
[1742518816907,6.26645,1991.7,1991.6,0.00752445]
[1742518817305,6.26645,1991.7,1991.6,1.31212445]
[1742518817704,6.26645,1991.7,1991.6,2.31702445]
[1742518817705,4.6204,1991.7,1991.6,2.31702445]
[1742518817915,1.3884,1991.7,1991.6,2.31702445]
[1742518818202,0.00752445,1991.8,1991.7,1.00485]
[1742518818411,5.51735445,1991.8,1991.7,2.6332]
[1742518818709,5.51735445,1991.8,1991.7,1.9611]
[1742518819710,5.51735445,1991.8,1991.7,2.96595]
[1742518819909,5.51731445,1991.8,1991.7,2.96595]
[1742518820206,5.51731445,1991.8,1991.7,3.61455]
[1742518820503,3.23952445,1991.8,1991.7,3.61455]
[1742518820805,3.23952445,1991.8,1991.7,6.82235]
[1742518821705,4.62382445,1991.8,1991.7,6.82235]
[1742518822206,3.23952445,1991.8,1991.7,6.82235]
[1742518824610,4.24431445,1991.8,1991.7,6.82235]
[1742518825004,4.24431445,1991.8,1991.7,5.1689]
[1742518825206,4.94071445,1991.8,1991.7,6.17375]
[1742518825498,6.28491445,1991.8,1991.7,5.1689]
[1742518826310,6.28491445,1991.8,1991.7,2.96595]
[1742518827103,5.58851445,1991.8,1991.7,3.66375]
[1742518829607,5.58851445,1991.8,1991.7,2.96595]
[1742518841619,5.58851445,1991.8,1991.7,1.9611]
[1742518842022,5.58851445,1991.8,1991.7,2.96595]
[1742518842623,5.58851445,1991.8,1991.7,1.9611]
[1742518842923,5.58851445,1991.8,1991.7,2.96595]
[1742518844319,5.58851445,1991.8,1991.7,1.9611]
[1742518844526,5.58851445,1991.8,1991.7,2.96595]
[1742518848525,5.58851445,1991.8,1991.7,1.9611]
[1742518850215,1.00485,1991.7,1991.6,3.21532445]
[1742518850421,3.08415,1991.7,1991.6,0.00752445]
[1742518860934,3.08415,1991.7,1991.6,1.36232445]
[1742518861335,2.39335,1991.7,1991.6,5.57502445]